Cogmind - Beta 12 @@@ ROGUE MODE // 2023.09.27 @ 01:23:15 Player: most_lamentable Result: Self-destructed Performance ------------- Evolutions (2) 1000 Regions Visited (7) 1400 Robots Destroyed (27) 135 Value Destroyed (535) 535 Prototype IDs (23) 460 Alien Tech Used (0) 0 Bonus (300) 300 TOTAL SCORE: 3830 Bonus ------- Aligned with FarCom 300 Cogmind --------- Core Integrity 500/550 Matter 188/300 Energy 43/100 System Corruption 0% Temperature Cool (0) Movement Walking (120) Location -8/Materials Parts ------- > --- POWER (1) -------- (None) > --- PROPULSION (4) --- Carbon-fiber Leg Makeshift Flight Unit > --- UTILITY (4) ------ Medium Storage Unit Trap Reconfigurator > --- WEAPON (2) ------- EMP Blaster > --- INVENTORY (10) --- Airjet Heat Sink Large Storage Unit Seismic Detector Heavy Armor Plating System Shield Particle Cannon Welding Torch Peak State ------------ > --- POWER ------------ Ion Engine > --- PROPULSION ------- Aluminum Leg Improved Aluminum Leg Carbon-fiber Leg Makeshift Flight Unit > --- UTILITY ---------- Medium Storage Unit Improved Terrain Scanner Particle Charger Trap Reconfigurator > --- WEAPON ----------- Particle Cannon Grenade Launcher > --- INVENTORY -------- Airjet Heat Sink Large Storage Unit Seismic Detector Heavy Armor Plating System Shield Beam Rifle EMP Blaster Welding Torch [Rating: 32] Favorites ----------- Power Improved Ion Engine Engine Improved Ion Engine Propulsion Aluminum Leg Leg Aluminum Leg Wheel Compact Wheel Flight Unit Makeshift Flight Unit Utility Medium Storage Unit Device Trap Reconfigurator Storage Medium Storage Unit Protection Medium Armor Plating Weapon Grenade Launcher Energy Gun EM Shotgun Energy Cannon Particle Cannon Launcher Grenade Launcher Build | -11 -10 -10 -9 -9 -9 -8 -8 ------- Run | Jun Mat Min Mat Min Exi Min Mat Slots Evolved 4 | . . . 2 . . . 2 Power . | . . . . . . . . Propulsion 2 | . . . 1 . . . 1 Utility 2 | . . . 1 . . . 1 Weapon . | . . . . . . . . Parts Attached 33 | 7 2 . 11 1 1 5 6 Power 3 | 1 . . 1 . . 1 . Engine 3 | 1 . . 1 . . 1 . Core . | . . . . . . . . Reactor . | . . . . . . . . Propulsion 9 | 3 . . 3 . . 2 1 Treads . | . . . . . . . . Leg 7 | 2 . . 3 . . 1 1 Wheel 1 | 1 . . . . . . . Hover . | . . . . . . . . Flight 1 | . . . . . . 1 . Utility 9 | 1 1 . 4 . 1 1 1 Device 4 | . 1 . . . 1 1 1 Storage 4 | 1 . . 3 . . . . Processor . | . . . . . . . . Hackware . | . . . . . . . . Protection 1 | . . . 1 . . . . Artifact . | . . . . . . . . Weapon 12 | 2 1 . 3 1 . 1 4 Energy Gun 5 | 2 . . 2 . . . 1 Energy Cannon 2 | . . . 1 . . . 1 Ballistic Gun . | . . . . . . . . Ballistic Cannon . | . . . . . . . . Launcher 5 | . 1 . . 1 . 1 2 Special Weapon . | . . . . . . . . Impact Weapon . | . . . . . . . . Slashing Weapon . | . . . . . . . . Piercing Weapon . | . . . . . . . . Special Melee Weapon . | . . . . . . . . Unidentified Prototypes . | . . . . . . . . Parts Lost 12 | . . . . . . 5 7 Power 2 | . . . . . . 1 1 Propulsion 4 | . . . . . . 2 2 Utility 3 | . . . . . . 1 2 Weapon 3 | . . . . . . 1 2 Highest Loss Streak 7 | . . . . . . 5 7 To Critical Strikes . | . . . . . . . . Average Slot Usage (%) 96 | . 88 100 98 100 100 96 90 Engine 10 | . 14 14 11 11 11 11 9 Leg 29 | . 28 28 33 33 33 30 20 Flight 2 | . . . . . . 2 9 Device 13 | . 3 14 11 11 11 12 25 Storage 11 | . 14 14 12 11 11 11 9 Protection 7 | . . . 8 11 11 8 . Energy Gun 10 | . 22 14 16 11 11 8 . Energy Cannon 2 | . . . 3 1 . . 8 Launcher 8 | . 5 14 1 9 11 12 8 Naked Turns . | . . . . . . . . Heaviest Build 32 | 13 16 16 32 32 31 31 27 Greatest Support 38 | 20 20 20 30 30 30 30 38 Greatest Overweight (x) 2 | . . . 1 1 1 2 1 Average Overweight (x) . | . . . . 1 1 . . Largest Inventory Capacity 15 | 8 8 8 15 10 10 10 10 Average Capacity 9 | 7 8 8 9 10 10 10 10 Most Carried 10 | 6 8 7 10 10 10 10 10 Average Carried 9 | 3 6 7 9 9 9 9 9 Final Capacity 10 | 8 8 8 10 10 10 10 10 Final Carried 10 | 5 7 7 10 10 10 10 9 Class Distribution -------------------- 87% | Mutant 12% | Skirmisher Dominant Class ---------------- Mutant | -10/Materials Mutant | -10/Mines Mutant | -9/Materials Mutant | -9/Mines Mutant | -9/Exiles Mutant | -8/Mines Skirmisher | -8/Materials Resources | -11 -10 -10 -9 -9 -9 -8 -8 ----------- Run | Jun Mat Min Mat Min Exi Min Mat Matter Collected 599 | 168 46 . 196 60 . 129 . Remotely . | . . . . . . . . Salvage Created 510 | . 46 . 230 69 . 143 22 Parts 43 | . 3 . 15 12 . 10 3 Haulers Intercepted . | . . . . . . . . Recyclers Shooed 1 | . . . . . . . 1 Parts Field Recycled . | . . . . . . . . Retrieved Matter . | . . . . . . . . Parts Self-Destructed . | . . . . . . . . Prevented . | . . . . . . . . Kills | -11 -10 -10 -9 -9 -9 -8 -8 ------- Run | Jun Mat Min Mat Min Exi Min Mat Combat Hostiles Destroyed 25 | . 3 . 7 8 . 7 . Guns 8 | . 3 . 4 1 . . . Cannons 3 | . . . 3 . . . . AOE 14 | . . . . 7 . 7 . Classes Destroyed 7 | . 1 . 2 . . 3 1 Builder 1 | . . . . . . . 1 Recycler 1 | . . . . . . 1 . Swarmer 17 | . 3 . 3 8 . 3 . Grunt 4 | . . . 2 . . 2 . Duelist 1 | . . . . . . 1 . Sentry 2 | . . . 2 . . . . Hunter 1 | . . . . . . 1 . Best Kill Streak 4 | . 3 . 2 4 . 3 1 Combat Bots Only 4 | . 3 . 2 4 . 3 . Max Kills in Single Turn 2 | . 1 . 2 2 . 2 1 Gunslinging . | . . . . . . . . Exploded 2 | . . . . 2 . 2 . Melee . | . . . . . . . . Uniques/NPCs Destroyed . | . . . . . . . . Combat | -11 -10 -10 -9 -9 -9 -8 -8 -------- Run | Jun Mat Min Mat Min Exi Min Mat Damage Taken 1704 | . 80 . 206 140 . 694 584 Core 321 | . 13 . 29 19 . 210 50 Absorbed by Shields . | . . . . . . . . Core Remaining (%) 76 | 100 . 94 . . . 35 . Volleys Fired 56 | . 10 . 18 6 . 15 7 Largest 2 | . 2 . 2 1 . 1 2 Hottest 124 | . 90 . 113 45 . 30 124 Shots Fired 87 | . 19 . 36 6 . 15 11 Gun 48 | . 18 . 25 1 . . 4 Cannon 15 | . . . 11 . . . 4 Launcher 24 | . 1 . . 5 . 15 3 Special . | . . . . . . . . Kinetic . | . . . . . . . . Thermal 49 | . 18 . 23 . . . 8 Explosive 22 | . 1 . . 5 . 15 1 Electromagnetic 16 | . . . 13 1 . . 2 Robot Hit Streak 16 | . 3 . 8 12 . 10 16 Robot Miss Streak 3 | . 3 . 3 . . 1 1 Penetration Max . | . . . . . . . . Secondary Targets 1 | . 1 . . . . . . Max Gunslinging Chain 1 | . 1 . . . . . . Shots Hit Robots 57 | . 9 . 22 6 . 10 10 Core Hits 43 | . 3 . 10 8 . 19 3 Critical Kills . | . . . . . . . . Critical Parts Destroyed . | . . . . . . . . Critical Strikes 1 | . . . . . . . 1 Burn 1 | . . . . . . . 1 Melee Attacks . | . . . . . . . . Impact . | . . . . . . . . Slashing . | . . . . . . . . Piercing . | . . . . . . . . Sneak Attacks . | . . . . . . . . Combat Hostiles . | . . . . . . . . Follow-up Attacks . | . . . . . . . . Damage Inflicted 1861 | . 121 . 365 361 . 757 257 Guns 416 | . 121 . 243 8 . . 44 Cannons 204 | . . . 122 . . . 82 Explosions 1241 | . . . . 353 . 757 131 Melee . | . . . . . . . . Ramming . | . . . . . . . . Kinetic . | . . . . . . . . Thermal 451 | . 121 . 204 . . . 126 Explosive 1176 | . . . . 353 . 757 66 Electromagnetic 234 | . . . 161 8 . . 65 Impact . | . . . . . . . . Slashing . | . . . . . . . . Piercing . | . . . . . . . . Highest Corruption 10 | . . . . . . 10 . Average Corruption 10 | . . . . . . 10 . Corruption Purged . | . . . . . . . . Corruption Blocked . | . . . . . . . . Effects 9 | . . . . . . 9 . Message Errors 3 | . . . . . . 3 . Matter Fused 2 | . . . . . . 2 . Heat Flow Errors 1 | . . . . . . 1 . Energy Discharges 1 | . . . . . . 1 . Data Loss (minor) 1 | . . . . . . 1 . Data Loss (major) 1 | . . . . . . 1 . Overload Shots . | . . . . . . . . Overflow Damage 39 | . . . 22 16 . . 1 Projectiles 22 | . . . 22 . . . . Explosions 17 | . . . . 16 . . 1 Melee . | . . . . . . . . Knockbacks . | . . . . . . . . Impact . | . . . . . . . . Kinetic . | . . . . . . . . Secondary . | . . . . . . . . Self-Inflicted Damage 144 | . . . . 16 . 98 30 Shots 10 | . . . . 2 . 5 3 Rammed . | . . . . . . . . Targets Rammed . | . . . . . . . . Kicked . | . . . . . . . . Crushed . | . . . . . . . . Highest Temperature 270 | . 270 . 162 6 . 106 234 Average Temperature 86 | . 137 . 66 4 . 27 116 Received Heat Transfer 306 | . . . 72 . . 63 171 Effects 3 | . . . . . . . 3 Interference 3 | . . . . . . . 3 Siege Activations . | . . . . . . . . Robots Corrupted . | . . . . . . . . Combat Hostiles . | . . . . . . . . Parts Fried . | . . . . . . . . Impact Corruptions . | . . . . . . . . Robots Melted . | . . . . . . . . Combat Hostiles . | . . . . . . . . Parts Melted 1 | . . . 1 . . . . Heat Transferred 1100 | . 310 . 457 . . . 333 Parts Sabotaged . | . . . . . . . . Parts Stolen . | . . . . . . . . Parts Stripped . | . . . . . . . . Power Chain Reactions . | . . . . . . . . Missiles Intercepted . | . . . . . . . . Alert | -11 -10 -10 -9 -9 -9 -8 -8 ------- Run | Jun Mat Min Mat Min Exi Min Mat Peak Influence 288 | . 152 58 148 288 . 105 40 Initial 58 | . . 58 22 48 . . 40 Average 64 | . 86 58 79 199 . 44 34 Maximum Alert Level 1 | . . . . 1 . . . Low Security (%) 95 | 100 100 100 100 36 . 100 100 Level 1 4 | . . . . 64 . . . Level 2 . | . . . . . . . . Level 3 . | . . . . . . . . Level 4 . | . . . . . . . . Level 5 . | . . . . . . . . High Security . | . . . . . . . . Max Security . | . . . . . . . . Squads Dispatched 1 | . . . 1 . . . . Investigation . | . . . . . . . . Extermination . | . . . . . . . . Reinforcement 1 | . . . 1 . . . . Assault . | . . . . . . . . Garrison . | . . . . . . . . Intercept . | . . . . . . . . Searches Triggered . | . . . . . . . . Construction Impeded . | . . . . . . . . Haulers Reinforced . | . . . . . . . . Active Scanning Responses . | . . . . . . . . Cargo Convoy Interrupts . | . . . . . . . . Stealth | -11 -10 -10 -9 -9 -9 -8 -8 --------- Run | Jun Mat Min Mat Min Exi Min Mat Distress Signals 2 | . . . 2 . . . . Communications Jammed . | . . . . . . . . Distress Signals . | . . . . . . . . Times Spotted 37 | . 6 . 11 10 . 7 3 Peak Tracking Total 4 | . 3 . 4 4 . 3 3 Tactical Retreats 2 | . . . 1 1 . . . Traps | -11 -10 -10 -9 -9 -9 -8 -8 ------- Run | Jun Mat Min Mat Min Exi Min Mat Traps Triggered . | . . . . . . . . Indirectly . | . . . . . . . . Trap Hack Attempts . | . . . . . . . . Triggered . | . . . . . . . . Disarmed . | . . . . . . . . Reprogrammed . | . . . . . . . . Reused . | . . . . . . . . Traps Reconfigurated 1 | . . . . . . . 1 Traps Extracted . | . . . . . . . . Installed . | . . . . . . . . Triggered . | . . . . . . . . Exploded 1 | . . . . . 1 . . Machines | -11 -10 -10 -9 -9 -9 -8 -8 ---------- Run | Jun Mat Min Mat Min Exi Min Mat Machines Disabled . | . . . . . . . . Max in Single Turn . | . . . . . . . . Machines Repaired . | . . . . . . . . Machines Sabotaged . | . . . . . . . . Overloaded Fab Kills . | . . . . . . . . Hacking | -11 -10 -10 -9 -9 -9 -8 -8 --------- Run | Jun Mat Min Mat Min Exi Min Mat Machines Accessed 8 | . 3 . 3 . 1 . 1 Terminals 7 | . 3 . 3 . . . 1 Fabricators . | . . . . . . . . Repair Stations . | . . . . . . . . Recycling Units . | . . . . . . . . Scanalyzers . | . . . . . . . . Garrison Access . | . . . . . . . . Total Hacks 15 | . 6 . 6 . 1 . 2 Successful 5 | . 2 . 2 . 1 . . Failed 10 | . 4 . 4 . . . 2 Catastrophic 2 | . 1 . 1 . . . . Database Lockouts . | . . . . . . . . Manual 11 | . 2 . 6 . 1 . 2 Terminals 14 | . 6 . 6 . . . 2 Fabricators . | . . . . . . . . Repair Stations . | . . . . . . . . Recycling Units . | . . . . . . . . Scanalyzers . | . . . . . . . . Garrison Access . | . . . . . . . . Terminal Hacks 4 | . 1 . 2 . 1 . . Branch Access Points 1 | . . . 1 . . . . Terminal Index 2 | . 1 . 1 . . . . EX-Prototype ID Bank 1 | . . . . . 1 . . Fabricator Hacks . | . . . . . . . . Repair Station Hacks . | . . . . . . . . Recycling Unit Hacks . | . . . . . . . . Scanalyzer . | . . . . . . . . Garrison Access Hacks . | . . . . . . . . Unauthorized Hacks 1 | . 1 . . . . . . Terminals 1 | . 1 . . . . . . Assimilate 1 | . 1 . . . . . . Fabricators . | . . . . . . . . Repair Stations . | . . . . . . . . Recycling Units . | . . . . . . . . Scanalyzers . | . . . . . . . . Garrison Access . | . . . . . . . . Data Cores Recovered . | . . . . . . . . Used . | . . . . . . . . Hacking Detections 6 | . 2 . 3 . . . 1 Full Trace Events . | . . . . . . . . Feedback Events . | . . . . . . . . Feedback Blocked . | . . . . . . . . Robot Schematics Acquired . | . . . . . . . . Robots Built . | . . . . . . . . Authchips . | . . . . . . . . Time . | . . . . . . . . Total Robot Build Rating . | . . . . . . . . Part Schematics Acquired . | . . . . . . . . Parts Built . | . . . . . . . . Authchips . | . . . . . . . . Time . | . . . . . . . . Total Part Build Rating . | . . . . . . . . Parts Repaired . | . . . . . . . . Time . | . . . . . . . . Parts Recycled . | . . . . . . . . Recycled Matter . | . . . . . . . . Retrieved Matter . | . . . . . . . . Retrieved Components . | . . . . . . . . Parts Scanalyzed . | . . . . . . . . Part Schematics Acquired . | . . . . . . . . Parts Damaged . | . . . . . . . . Bothacking | -11 -10 -10 -9 -9 -9 -8 -8 ------------ Run | Jun Mat Min Mat Min Exi Min Mat Used RIF Installer . | . . . . . . . . Robots Hacked . | . . . . . . . . Non-combat . | . . . . . . . . Combat . | . . . . . . . . Robot Hacks Applied . | . . . . . . . . Relay Couplers Released . | . . . . . . . . Fabnet Peak Effective % . | . . . . . . . . Robots Rewired . | . . . . . . . . Allies Hacked . | . . . . . . . . Hacks Repelled . | . . . . . . . . Allies | -11 -10 -10 -9 -9 -9 -8 -8 -------- Run | Jun Mat Min Mat Min Exi Min Mat Total Allies 1 | . 1 . . . . . . Largest Group 1 | . 1 1 1 . . . . Highest-Rated Group 10 | . 10 10 10 . . . . Highest-Rated Ally 10 | . 10 10 10 . . . . Total Orders . | . . . . . . . . Ally Attacks . | . . . . . . . . Total Damage . | . . . . . . . . Kills . | . . . . . . . . Allies Corrupted . | . . . . . . . . Allies Melted . | . . . . . . . . Intel | -11 -10 -10 -9 -9 -9 -8 -8 ------- Run | Jun Mat Min Mat Min Exi Min Mat Robot Analysis Total . | . . . . . . . . Derelict Logs Recovered . | . . . . . . . . Drone Launches . | . . . . . . . . Drone Recoveries . | . . . . . . . . Exploration | -11 -10 -10 -9 -9 -9 -8 -8 ------------- Run | Jun Mat Min Mat Min Exi Min Mat Turns Passed 3236 | 61 189 45 593 200 603 1086 459 Spaces Moved 1611 | 39 129 38 302 93 316 545 149 Core 5 | 5 . . . . . . . Treads . | . . . . . . . . Legs 1598 | 34 129 38 302 93 316 537 149 Wheels . | . . . . . . . . Hover . | . . . . . . . . Flight 8 | . . . . . . 8 . Fastest Speed 50 | 50 120 120 120 190 190 120 120 Average Speed 166 | 111 120 120 135 190 190 184 163 Slowest Speed 245 | 120 120 120 190 190 190 245 190 Overloaded Moves . | . . . . . . . . Propulsion Burnouts . | . . . . . . . . Robots Hopped . | . . . . . . . . Cave-ins Triggered 1 | . . . . . . 1 . Exploration Rate (%) 32 | 4 27 17 28 17 63 90 14 Regions Visited 7 Branch Regions 4 Pre-discovered Areas . | . . . . . . . . Known Exits Taken 1 | . . . 1 . . . . Unknown Exits Taken 6 | 1 1 1 . 1 1 1 . Scrap Searched 2 | . . . . 1 . 1 . Spaces Dug . | . . . . . . . . Terrain Destroyed 137 | . 8 . . 37 . 87 5 Melee . | . . . . . . . . Projectile . | . . . . . . . . AOE 137 | . 8 . . 37 . 87 5 Terrain Rammed . | . . . . . . . . Walls Destroyed . | . . . . . . . . Machines Disabled . | . . . . . . . . Actions | -11 -10 -10 -9 -9 -9 -8 -8 --------- Run | Jun Mat Min Mat Min Exi Min Mat Total 2079 | 57 143 37 450 111 320 609 352 Wait 339 | . . . 103 10 . 41 185 Move 1604 | 38 128 37 301 92 315 544 149 Hop . | . . . . . . . . Pick Up 32 | 11 3 . 9 1 2 4 2 Fast Attach 4 | . . . 1 . . 1 2 Attach 15 | 7 1 . 2 . . 4 1 Detach 1 | 1 . . . . . . . Swap 14 | . 1 . 8 1 1 . 3 Drop 14 | . . . 8 1 2 . 3 Fire 56 | . 10 . 18 6 . 15 7 Melee . | . . . . . . . . Ram . | . . . . . . . . Kick . | . . . . . . . . Crush . | . . . . . . . . Escape Stasis . | . . . . . . . . Rewire . | . . . . . . . . Trap . | . . . . . . . . Miscellaneous . | . . . . . . . . Route ------- -11/Junkyard -10/Materials -10/Mines -9/Materials -9/Mines (discovered 2 exits: *Mat / *Exi) -9/Exiles (discovered 2 exits: [*Min x2]) -8/Mines -8/Materials History --------- Turn | Location | Event 5 | -11/Junkyard | Discovered new exit (range 15) 62 | -11/Junkyard | Entered Materials 167 | -10/Materials | Discovered new exit (range 11) 251 | -10/Materials | Entered Mines 251 | -10/Mines | Accompanied by 1 ally 278 | -10/Mines | Discovered new exit (range 15) 296 | -10/Mines | Entered Materials 296 | -9/Materials | Accompanied by 1 ally 296 | -9/Materials | Evolved 2 slots: Propulsion x1, Utility x1 317 | -9/Materials | Build established: Mutant 601 | -9/Materials | Identified exit to Mines 889 | -9/Materials | Entered Mines 924 | -9/Mines | Discovered new exit (range 8) 1082 | -9/Mines | Deemed a non-threat by the Exiles lab entrance 1082 | -9/Mines | Discovered new exit (range 5) 1089 | -9/Mines | Entered Exiles 1116 | -9/Exiles | Discovered new exit (range 15) 1162 | -9/Exiles | Met 8R-AWN 1192 | -9/Exiles | Met EX-HEX 1266 | -9/Exiles | Met EX-DEC 1429 | -9/Exiles | Met EX-BIN 1456 | -9/Exiles | Aligned with FarCom system 1458 | -9/Exiles | Given EX-Vault access code 1501 | -9/Exiles | Opened EX-Vault 1513 | -9/Exiles | Found Trap Reconfigurator 1556 | -9/Exiles | Warned to stay clear of 0b10 Research branches 1581 | -9/Exiles | Exiles lab attacked by MAIN.C 1670 | -9/Exiles | Discovered new exit (range 14) 1692 | -9/Exiles | Left Exiles lab with Trap Reconfigurator 1692 | -9/Exiles | Entered Mines 2554 | -8/Mines | Crushed by falling debris 2554 | -8/Mines | Core integrity fell below 50% 2554 | -8/Mines | System corruption reached 10% 2585 | -8/Mines | Lost 5 parts (1p2n1u1w) 2755 | -8/Mines | Discovered new exit (range 7) 2778 | -8/Mines | Entered Materials 2778 | -8/Materials | Evolved 2 slots: Propulsion x1, Utility x1 3119 | -8/Materials | Build established: Skirmisher 3237 | -8/Materials | Self-destructed Last Messages --------------- 03210_ G-47 Trooper overheating. 03212_ Overheating: System interference. 03212_ Particle Cannon temporarily disabled. 03212_ Beam Rifle temporarily disabled. 03212_ G-47 Trooper overheating. 03213_ Penetrated by Slug. 03218_ U-05 Engineer builds a Door. 03218_ Aluminum Leg destroyed. 03220_ Beam Rifle destroyed. 03221_ Door malfunctions. 03225_ U-05 Engineer destroyed. 03225_ Imp. Aluminum Leg destroyed. 03225_ Destroyed Imp. Aluminum Leg. 03226_ Grenade Launcher destroyed. 03226_ Slug penetrates R-06 Scavenger. 03229_ Door malfunctions. 03229_ Penetrated by Slug. 03232_ Imp. Terrain Scanner destroyed. 03234_ Ion Engine destroyed. 03235_ Slug penetrates Atomic Centrifuge. Map ----- +----------------------------------------------------+ | ??????????????????????#???????????????? | | ??????????????????????????????????????? | | ???????????????????????????????#?#????? | | ??????????????????????????????????????# | | ???????????????????????????????#??????? | | ??????????????????????????? ??????????? | | ??????????????????????????????????#???? | | ???????????????????????########?????#?? | | ???????????? ??????????# !##??????? | | ?????????????????????#?# #????#??? | | ?????????????? ????????# """ #???????? | | ??????????????? ???????# """ ######### | | ?????????????????#??#??# """ ## # | | ???????????????????#???# ## """ # | | ???????????????? ??????####+#### """ # | | ????????????????? ????????# + """ # | | ????????????????? ????????# # ^ # | | ??????????? ????????####### s # # | | ?????????????? ? ????# # s #######? | | ??????#????? ???????# # s#??????? | | ? ?? ??#??? ????? ?## # ##+#??????? | | ???????????? ?????? # # ##?????? ?? | | ??????#########+##### # #??????""?? | | ???? g # ##? ?g"???? | | ???? h % / #?? ?"???# | | ????????# | = @# + ???? ?? | | ????????# " " ! # #"????"??? | | ????????#? """ """ ###### #?? ????? | | ??####### """ """ #?" ??"" ? | | ### # ?? ?? ?? | | #########? | | ###+######+?###### # ?# | | #? ??? ?########### # """""? | | """ #???????# ###### # """"?? | | """ #???"???#] ""# # """""# | | """ #????? ?# T"# # """""? | | #???????#] ""# ### + """""? | | """ #??? ???# # #?# # """""? | | """ #?#?????###+## #?# # """""? | | """ ######### g #?####! # | | ! ! + #?#??########## | | #################+####+##??????##?????? | | ???????????# ##????#????????? | | ?????#???#?# ##????#????????? | | ???????????# #?????#????????? | | ??#????????# #??????#??#???#? | | ????????#??# #??#????????#??? | | ??????#??#?# #??#??#????????? | | ??#????#???# #?????###?#?#??? | | ???????????#############??#?????#???#?? | +----------------------------------------------------+ Best States ------------- Heat Dissipation 31 Energy Generation 12 Energy Capacity 350 Matter Stores 300 Matter Capacity 300 Sight Range 16 Terrain Scan Range 16 Terrain Scan Density 10 Armor Coverage 225 Evasion (%) 55 Particle Charging 15 Item Schematics ----------------- None Robot Schematics ------------------ None Fabricated ------------ Nothing Alien Tech Used ----------------- None Achievements -------------- None Challenges ------------ None Game ------ Seed TransmissionCoreTerminator Manual? 0 Play Time 00:35:48 Cumulative 20.7 hours Start 2023.09.27 @ 00:47:48 End 2023.09.27 @ 01:23:15 Sessions 1 Manual Loads 0 Difficulty Rogue Special Mode None Game No. 18 Rogue 18 Adventurer 0 Explorer 0 Win Type - Total 0 Types 0/0/0/0/0/0/0/0/0 Lore% 18 Gallery% 20 Achievement% 19 Wizard Run 0 Options --------- ASCII 0 Keyboard 0 Movement Mouse Keybinds 0 Fullscreen 2 Font 18/SmallcapsGlow Map View 76x50 Tactical HUD 1 Map Filters NONE Filters NONE Steam 1 RUN: 9e44a4ad-ac5f-4d69-9941-c114c80af795